[Event "ESP-ch U2000 2024"]
[Site "Albacete"]
[Date "2024.08.30"]
[Round "6.7"]
[White "Lopez Ruiz, Jarein"]
[Black "Marin Lopez, Juan Jose"]
[Result "1-0"]
[ECO "E15"]
[WhiteElo "1970"]
[BlackElo "1895"]
[Annotator "RC"]
[PlyCount "150"]
[EventDate "2024.08.27"]
[EventType "swiss"]
[EventCountry "ESP"]
[SourceTitle "playchess.com"]
[Source "ChessBase"]
[SourceQuality "1"]
[TimeControl "5400+30"]

1. d4 {[%emt 0:00:34]} Nf6 {[%emt 0:00:35]} 2. c4 {[%emt 0:00:18]} e6 {[%emt 0:00:09]} 3. Nf3 {[%emt 0:00:13]} b6 {[%emt 0:00:39]} 4. g3 {[%emt 0:02:34]} Ba6 {[%emt 0:01:29]} 5. Qc2 {[%emt 0:02:38]} c5 {[%emt 0:08:09]} 6. Bg2 {[%emt 0:06:02]} Bb7 {[%emt 0:00:52]} 7. O-O {[%emt 0:03:35]} cxd4 {[%emt 0:04:08]} 8. Nxd4 {[%emt 0:00:14]} Bxg2 {[%emt 0:00:09]} 9. Kxg2 {[%emt 0:00:05]} Be7 {[%emt 0:04:46]} 10. Rd1 {[%emt 0:02:21]} O-O {[%emt 0:00:44]} 11. e4 {[%emt 0:01:10]} Qc7 {[%emt 0:08:00]} 12. Qe2 {[%emt 0:07:09]} d6 {[%emt 0:07:56]} 13. b3 {[%emt 0:03:30]} Qb7 {[%emt 0:01:09]} 14. Nc3 {[%emt 0:02:45]} Rd8 {[%emt 0:05:46]} 15. f3 {[%emt 0:13:58]} a6 {[%emt 0:01:29]} 16. Ba3 {[%emt 0:07:41]} Nbd7 {[%emt 0:04:11]} 17. Rd2 {[%emt 0:03:08]} Bf8 {[%emt 0:04:45]} 18. Rad1 {[%emt 0:04:11]} Qc7 {[%emt 0:05:38]} 19. Nc2 {[%emt 0:03:54]} Nc5 {[%emt 0:08:55]} 20. Bb2 {[%emt 0:01:09]} Rd7 {[%emt 0:05:43]} 21. g4 {[%emt 0:08:46]} Rad8 {[%emt 0:07:40]} 22. Ne3 {[%emt 0:01:55]} Qc6 {[%emt 0:03:31]} 23. Kg1 {[%emt 0:05:51]} Qc7 {[%emt 0:00:53]} 24. Qf2 {[%emt 0:01:16]} Rb8 {[%emt 0:05:11]} 25. Qh4 {[%emt 0:01:42]} Qd8 {[%emt 0:00:44]} 26. g5 {[%emt 0:00:56]} Ne8 {[%emt 0:01:03]} 27. Qg3 {[%emt 0:03:52]} g6 {[%emt 0:04:12]} 28. b4 {[%emt 0:03:27]} Nb7 {[%emt 0:00:12]} 29. e5 {[%emt 0:00:05]} Ng7 {[%emt 0:03:18]} 30. Ne4 {[%emt 0:01:06]} Nh5 {[%emt 0:00:56]} 31. Qh4 {[%emt 0:02:21]} d5 {[%emt 0:00:15]} 32. a3 {[%emt 0:02:48]} a5 {[%emt 0:02:22]} 33. cxd5 {[%emt 0:00:43]} axb4 {[%emt 0:00:20]} 34. d6 {[%emt 0:01:52]} bxa3 {[%emt 0:00:22]} 35. Bxa3 {[%emt 0:00:02]} Ra8 {[%emt 0:00:24]} 36. Rd3 {[%emt 0:01:48]} Ra5 {[%emt 0:00:19]} 37. Nc4 {[%emt 0:00:38]} Rb5 {[%emt 0:00:41]} 38. f4 {[%emt 0:01:20]} Na5 {[%emt 0:00:14]} 39. Nxa5 {[%emt 0:00:32]} Rxa5 {[%emt 0:00:26]} 40. Nf6+ {[%emt 0:00:52]} Nxf6 {[%emt 0:00:14]} 41. gxf6 {[%emt 0:00:01]} Qa8 {[%emt 0:00:29]} 42. Rh3 {[%emt 0:00:39]} h6 {[%emt 0:00:17]} 43. Bc1 {[%emt 0:00:43]} Ra2 {[%emt 0:00:18]} 44. Qg3 {[%emt 0:00:39]} Qa5 {[%emt 0:00:42]} 45. Qc3 {[%emt 0:00:53]} Qa8 {[%emt 0:00:57]} 46. Rg3 {[%emt 0:00:06]} b5 {[%emt 0:00:00]} 47. Qb3 {[%emt 0:01:05]} Qa7+ {[%emt 0:00:38]} 48. Be3 {[%emt 0:00:17]} Qa6 {[%emt 0:00:49]} 49. f5 {[%emt 0:00:49]} exf5 {[%emt 0:00:14]} 50. Rxg6+ {[%emt 0:00:08]} Kh7 {[%emt 0:00:18]} 51. Rg3 {[%emt 0:00:22]} Ra1 {[%emt 0:00:46]} 52. Kg2 {[%emt 0:00:51]} Rxd1 {[%emt 0:01:37]} 53. Qxd1 {[%emt 0:00:01]} Qa2+ {[%emt 0:00:27]} 54. Bf2 {[%emt 0:00:47]} Qe6 {[%emt 0:00:21]} 55. Qd4 {[%emt 0:00:51]} b4 {[%emt 0:00:23]} 56. Rd3 {[%emt 0:00:39]} b3 {[%emt 0:00:41]} 57. Qd5 {[%emt 0:00:15]} Qxd5+ {[%emt 0:00:58]} 58. Rxd5 {[%emt 0:00:01]} b2 {[%emt 0:00:25]} 59. Rb5 {[%emt 0:00:13]} Bxd6 {[%emt 0:00:13]} 60. exd6 {[%emt 0:00:17]} Rxd6 {[%emt 0:00:01]} 61. Rxb2 {[%emt 0:00:15]} Rxf6 {[%emt 0:00:02]} 62. Rb5 {[%emt 0:00:43]} Kg6 {[%emt 0:00:17]} 63. Rb8 {[%emt 0:00:14]} Rc6 {[%emt 0:01:11]} 64. Rg8+ {[%emt 0:00:27]} Kh7 {[%emt 0:00:09]} 65. Rg3 {[%emt 0:00:29]} Rc4 {[%emt 0:00:57]} 66. Kf3 {[%emt 0:00:31]} Ra4 {[%emt 0:00:24]} 67. Be3 {[%emt 0:00:31]} Rh4 {[%emt 0:01:14]} 68. Rg2 {[%emt 0:00:43]} h5 {[%emt 0:00:37]} 69. Bg1 {[%emt 0:00:57]} Ra4 {[%emt 0:00:29]} 70. Rg5 {[%emt 0:00:32]} Rg4 {[%emt 0:00:35]} 71. Rxg4 {[%emt 0:00:56]} hxg4+ {[%emt 0:00:27]} 72. Kf4 {[%emt 0:00:22]} Kg6 {[%emt 0:00:12]} 73. Bf2 {[%emt 0:00:16]} Kf6 {[%emt 0:00:50]} 74. Bh4+ {[%emt 0:00:18]} Kg6 {[%emt 0:00:01]} 75. Bg5 {[%emt 0:01:20]} f6 1-0

[Event "ESP-ch U2000 2024"]
[Site "Albacete"]
[Date "2024.08.30"]
[Round "6.8"]
[White "Burriel Ureta, Raul"]
[Black "Alcaraz Soriano, Angela"]
[Result "1/2-1/2"]
[ECO "B13"]
[WhiteElo "1868"]
[BlackElo "1952"]
[Annotator "RC"]
[PlyCount "104"]
[EventDate "2024.08.27"]
[EventType "swiss"]
[EventCountry "ESP"]
[SourceTitle "playchess.com"]
[Source "ChessBase"]
[SourceQuality "1"]
[TimeControl "5400+30"]

1. e4 {[%emt 0:00:01]} c6 2. d4 {[%emt 0:00:00]} d5 {[%emt 0:00:52]} 3. exd5 cxd5 {[%emt 0:00:05]} 4. c3 {[%emt 0:00:12]} Nc6 5. Bf4 {[%emt 0:00:03]} Nf6 {[%emt 0:02:44]} 6. Nf3 {[%emt 0:00:08]} Bg4 {[%emt 0:00:15]} 7. Qb3 {[%emt 0:01:55]} Qc8 8. Nbd2 e6 {[%emt 0:12:30]} 9. Be2 {[%emt 0:04:26]} Be7 {[%emt 0:01:29]} 10. h3 {[%emt 0:00:36]} Bh5 {[%emt 0:01:31]} 11. g4 {[%emt 0:03:59]} Bg6 {[%emt 0:00:19]} 12. Nh4 {[%emt 0:00:42]} Nd7 {[%emt 0:13:48]} 13. Nxg6 {[%emt 0:00:57]} hxg6 {[%emt 0:00:07]} 14. Nf3 {[%emt 0:00:22]} Na5 {[%emt 0:04:17]} 15. Qa4 {[%emt 0:08:06]} Nc4 {[%emt 0:01:26]} 16. Bxc4 {[%emt 0:06:21]} Qxc4 {[%emt 0:01:18]} 17. Qxc4 {[%emt 0:00:01]} dxc4 {[%emt 0:00:02]} 18. Nd2 {[%emt 0:00:14]} Nb6 {[%emt 0:05:58]} 19. a4 {[%emt 0:06:52]} a5 {[%emt 0:08:10]} 20. Ke2 {[%emt 0:08:17]} Rc8 {[%emt 0:02:56]} 21. h4 {[%emt 0:17:10]} Rxh4 {[%emt 0:03:33]} 22. Rxh4 {[%emt 0:01:59]} Bxh4 {[%emt 0:00:02]} 23. Rh1 {[%emt 0:01:15]} g5 {[%emt 0:03:21]} 24. Bd6 {[%emt 0:02:55]} Nxa4 {[%emt 0:02:49]} 25. Ba3 {[%emt 0:00:18]} b5 {[%emt 0:02:01]} 26. Ne4 {[%emt 0:08:50]} Kd7 {[%emt 0:09:54]} 27. f4 {[%emt 0:00:16]} f5 {[%emt 0:02:04]} 28. gxf5 {[%emt 0:04:27]} exf5 {[%emt 0:00:24]} 29. Nxg5 {[%emt 0:05:20]} Bxg5 {[%emt 0:02:35]} 30. fxg5 {[%emt 0:00:09]} Rb8 {[%emt 0:00:20]} 31. Ra1 {[%emt 0:01:02]} Ke6 {[%emt 0:02:01]} 32. Kf3 {[%emt 0:00:55]} Kd5 {[%emt 0:04:23]} 33. Kf4 {[%emt 0:02:05]} g6 {[%emt 0:00:14]} 34. Kf3 Re8 {[%emt 0:04:58]} 35. Rh1 {[%emt 0:01:51]} Rb8 {[%emt 0:00:43]} 36. Ra1 {[%emt 0:00:04]} Rb6 {[%emt 0:00:08]} 37. Be7 {[%emt 0:08:48]} Re6 {[%emt 0:01:04]} 38. Bd8 {[%emt 0:00:01]} Ra6 {[%emt 0:00:57]} 39. Be7 {[%emt 0:00:20]} Nxb2 {[%emt 0:04:40]} 40. Rb1 {[%emt 0:00:06]} Ke6 {[%emt 0:00:23]} 41. Ba3 Na4 {[%emt 0:01:12]} 42. Rxb5 {[%emt 0:03:28]} Nxc3 {[%emt 0:00:14]} 43. Re5+ {[%emt 0:00:37]} Kd7 {[%emt 0:00:54]} 44. d5 {[%emt 0:01:22]} Ne4 {[%emt 0:00:55]} 45. Re7+ {[%emt 0:00:16]} Kd8 {[%emt 0:00:18]} 46. Kf4 {[%emt 0:00:33]} c3 {[%emt 0:00:46]} 47. Rg7 {[%emt 0:00:23]} c2 {[%emt 0:00:23]} 48. Rg8+ {[%emt 0:00:22]} Kd7 {[%emt 0:00:44]} 49. Rg7+ {[%emt 0:01:47]} Kc8 {[%emt 0:01:32]} 50. Rg8+ {[%emt 0:00:15]} Kd7 {[%emt 0:01:18]} 51. Rg7+ {[%emt 0:00:01]} Kc8 {[%emt 0:00:35]} 52. Kf3 Rb6 1/2-1/2

[Event "ESP-ch U2000 2024"]
[Site "Albacete"]
[Date "2024.08.30"]
[Round "6.9"]
[White "Murillo Lopez, Francisco"]
[Black "Reig Albero, Ferran"]
[Result "1/2-1/2"]
[ECO "B07"]
[WhiteElo "1925"]
[BlackElo "1969"]
[Annotator "RC"]
[PlyCount "60"]
[EventDate "2024.08.27"]
[EventType "swiss"]
[EventCountry "ESP"]
[SourceTitle "playchess.com"]
[Source "ChessBase"]
[SourceQuality "1"]
[TimeControl "5400+30"]

1. e4 {[%emt 0:00:27]} d6 {[%emt 0:00:09]} 2. d4 {[%emt 0:00:37]} Nf6 {[%emt 0:00:14]} 3. Nc3 {[%emt 0:00:26]} g6 {[%emt 0:00:09]} 4. f3 {[%emt 0:00:36]} c6 {[%emt 0:00:55]} 5. Be3 {[%emt 0:00:35]} Nbd7 {[%emt 0:00:23]} 6. Qd2 {[%emt 0:01:08]} b5 {[%emt 0:00:53]} 7. O-O-O {[%emt 0:04:17]} Nb6 {[%emt 0:01:40]} 8. e5 {[%emt 0:03:14]} Nfd5 {[%emt 0:11:25]} 9. Nxd5 {[%emt 0:02:14]} Nxd5 {[%emt 0:00:21]} 10. Bh6 {[%emt 0:02:03]} Bxh6 {[%emt 0:04:30]} 11. Qxh6 {[%emt 0:00:16]} Qa5 {[%emt 0:07:44]} 12. Kb1 {[%emt 0:13:11]} Be6 {[%emt 0:06:05]} 13. Ne2 {[%emt 0:08:30]} O-O-O {[%emt 0:20:46]} 14. exd6 {[%emt 0:07:02]} exd6 {[%emt 0:05:31]} 15. Qd2 {[%emt 0:02:17]} Qxd2 {[%emt 0:11:25]} 16. Rxd2 {[%emt 0:00:14]} Rhe8 {[%emt 0:00:27]} 17. Ng3 {[%emt 0:03:23]} f5 {[%emt 0:04:30]} 18. Bd3 {[%emt 0:07:58]} Nf4 {[%emt 0:01:50]} 19. a3 {[%emt 0:01:18]} Bd5 {[%emt 0:01:12]} 20. Rc1 {[%emt 0:02:01]} Re7 {[%emt 0:01:26]} 21. Bf1 {[%emt 0:01:00]} Rde8 {[%emt 0:02:21]} 22. c4 {[%emt 0:05:36]} bxc4 {[%emt 0:01:13]} 23. Bxc4 {[%emt 0:00:45]} Re1 {[%emt 0:02:15]} 24. Bxd5 {[%emt 0:01:02]} Nxd5 {[%emt 0:01:26]} 25. Rdc2 {[%emt 0:01:37]} Rxc1+ {[%emt 0:00:07]} 26. Kxc1 {[%emt 0:00:16]} Kb7 {[%emt 0:00:43]} 27. Re2 {[%emt 0:01:21]} Rxe2 {[%emt 0:00:31]} 28. Nxe2 {[%emt 0:00:10]} Kb6 {[%emt 0:00:07]} 29. Kd2 {[%emt 0:01:54]} Kb5 {[%emt 0:00:33]} 30. b3 {[%emt 0:00:18]} a5 1/2-1/2

[Event "ESP-ch U2000 2024"]
[Site "Albacete"]
[Date "2024.08.31"]
[Round "7.1"]
[White "Tarraga Navarro, Pablo"]
[Black "Sala Esquiva, Miguel"]
[Result "1-0"]
[ECO "B26"]
[WhiteElo "1968"]
[BlackElo "1967"]
[Annotator "NA RC"]
[PlyCount "73"]
[EventDate "2024.08.27"]
[EventType "swiss"]
[EventCountry "ESP"]
[SourceTitle "playchess.com"]
[Source "ChessBase"]
[SourceQuality "1"]
[TimeControl "5400+30"]

1. e4 {[%emt 0:00:03]} c5 {[%emt 0:00:07]} 2. Nc3 {[%emt 0:00:06]} Nc6 {[%emt 0:00:19]} 3. g3 {[%emt 0:00:17]} g6 {[%emt 0:01:38]} 4. Bg2 {[%emt 0:00:04]} Bg7 {[%emt 0:01:07]} 5. d3 {[%emt 0:00:10]} d6 {[%emt 0:05:04]} 6. Nge2 {[%emt 0:01:21]} e5 {[%emt 0:01:46]} 7. Nd5 {[%emt 0:05:04]} h6 {[%emt 0:04:06]} 8. O-O {[%emt 0:05:37]} Bg4 {[%emt 0:11:18]} 9. Ne3 {[%emt 0:01:53]} Bxe2 {[%emt 0:01:38]} 10. Qxe2 {[%emt 0:00:05]} Nd4 {[%emt 0:01:14]} 11. Qd1 {[%emt 0:00:07]} Ne7 {[%emt 0:07:24]} 12. f4 {[%emt 0:02:36]} Qd7 {[%emt 0:02:53]} 13. c3 {[%emt 0:01:02]} exf4 {[%emt 0:04:46]} 14. gxf4 {[%emt 0:08:50]} Ndc6 {[%emt 0:00:38]} 15. f5 {[%emt 0:02:42]} gxf5 {[%emt 0:09:27]} 16. Bh3 {[%emt 0:03:41]} Bf6 {[%emt 0:07:19]} 17. Nxf5 {[%emt 0:09:47]} Nxf5 {[%emt 0:04:35]} 18. Rxf5 {[%emt 0:00:08]} Qe7 {[%emt 0:01:17]} 19. Rh5 {[%emt 0:09:47]} Rg8+ {[%emt 0:05:57]} 20. Kh1 {[%emt 0:00:10]} Bg5 {[%emt 0:00:39]} 21. Bxg5 {[%emt 0:03:47]} hxg5 {[%emt 0:00:13]} 22. Bf5 {[%emt 0:04:39]} Kd8 23. Rh7 {[%emt 0:03:20]} Kc7 {[%emt 0:07:12]} 24. Qb3 {[%emt 0:08:51]} Raf8 {[%emt 0:00:47]} 25. Rf1 {[%emt 0:05:40]} Nd8 {[%emt 0:05:53]} 26. d4 {[%emt 0:05:10]} Rh8 {[%emt 0:04:16]} 27. Rxh8 {[%emt 0:00:07]} Rxh8 {[%emt 0:00:03]} 28. Qd5 {[%emt 0:00:40]} Ne6 {[%emt 0:06:05]} 29. dxc5 {[%emt 0:01:26]} dxc5 {[%emt 0:00:42]} 30. Qe5+ {[%emt 0:00:16]} Qd6 {[%emt 0:01:18]} 31. Qxh8 {[%emt 0:00:11]} Nf4 {[%emt 0:01:04]} 32. Bg4 {[%emt 0:08:02]} Qd3 {[%emt 0:01:43]} 33. Qe5+ {[%emt 0:00:10]} Kb6 {[%emt 0:00:16]} 34. Rd1 {[%emt 0:01:20]} Qc2 {[%emt 0:00:36]} 35. Rd6+ {[%emt 0:01:44]} Kb5 {[%emt 0:00:44]} 36. Bd7+ {[%emt 0:00:10]} Kc4 {[%emt 0:00:28]} 37. b3+ 1-0

[Event "ESP-ch U2000 2024"]
[Site "Albacete"]
[Date "2024.08.31"]
[Round "7.4"]
[White "Perez Gonzalez, Daniel"]
[Black "Hurtado Oldridge, Felipe"]
[Result "1-0"]
[ECO "B30"]
[WhiteElo "1981"]
[BlackElo "1873"]
[Annotator "NA RC"]
[PlyCount "99"]
[EventDate "2024.08.27"]
[EventType "swiss"]
[EventCountry "ESP"]
[SourceTitle "playchess.com"]
[Source "ChessBase"]
[SourceQuality "1"]
[TimeControl "5400+30"]

1. e4 {[%emt 0:00:05]} c5 {[%emt 0:00:10]} 2. Nf3 {[%emt 0:00:38]} Nc6 {[%emt 0:00:11]} 3. Bb5 {[%emt 0:00:09]} e6 {[%emt 0:00:13]} 4. Bxc6 {[%emt 0:04:03]} bxc6 {[%emt 0:00:12]} 5. O-O {[%emt 0:01:12]} d5 {[%emt 0:02:53]} 6. d3 {[%emt 0:01:05]} Ba6 {[%emt 0:03:37]} 7. Re1 {[%emt 0:00:23]} dxe4 {[%emt 0:09:35]} 8. dxe4 {[%emt 0:06:14]} Qxd1 {[%emt 0:00:12]} 9. Rxd1 {[%emt 0:00:02]} Nf6 {[%emt 0:00:09]} 10. Nc3 {[%emt 0:01:52]} Rb8 {[%emt 0:00:13]} 11. Ne5 {[%emt 0:04:35]} Rc8 {[%emt 0:04:00]} 12. Be3 {[%emt 0:04:39]} Rc7 {[%emt 0:03:04]} 13. Rd2 {[%emt 0:04:40]} Be7 {[%emt 0:00:16]} 14. Rad1 {[%emt 0:01:05]} c4 {[%emt 0:05:11]} 15. Bc5 {[%emt 0:04:12]} O-O {[%emt 0:04:30]} 16. Bxe7 {[%emt 0:02:08]} Rxe7 {[%emt 0:00:02]} 17. Nd7 {[%emt 0:04:12]} Rfe8 {[%emt 0:03:53]} 18. f3 {[%emt 0:09:36]} e5 {[%emt 0:01:56]} 19. Nxf6+ {[%emt 0:04:24]} gxf6 {[%emt 0:00:03]} 20. Rd6 {[%emt 0:00:17]} Re6 {[%emt 0:01:08]} 21. Rd7 {[%emt 0:00:12]} R6e7 {[%emt 0:06:16]} 22. R1d6 {[%emt 0:01:21]} Rxd7 {[%emt 0:13:17]} 23. Rxd7 {[%emt 0:00:09]} Bc8 {[%emt 0:00:07]} 24. Rxa7 {[%emt 0:01:45]} Be6 {[%emt 0:00:01]} 25. Kf2 {[%emt 0:04:15]} Rb8 {[%emt 0:00:05]} 26. Na4 {[%emt 0:01:24]} c3 {[%emt 0:02:32]} 27. b3 {[%emt 0:01:04]} Rd8 {[%emt 0:02:28]} 28. Nxc3 {[%emt 0:08:02]} Rd2+ {[%emt 0:00:15]} 29. Kg3 {[%emt 0:02:41]} Rxc2 {[%emt 0:00:25]} 30. Nd1 {[%emt 0:00:23]} Re2 {[%emt 0:02:01]} 31. Nf2 {[%emt 0:03:04]} f5 {[%emt 0:01:10]} 32. exf5 {[%emt 0:01:14]} Bxf5 {[%emt 0:00:03]} 33. b4 {[%emt 0:04:08]} Bb1 {[%emt 0:01:00]} 34. a4 {[%emt 0:01:44]} f5 {[%emt 0:00:02]} 35. Nd1 {[%emt 0:08:05]} Rd2 {[%emt 0:06:16]} 36. b5 {[%emt 0:03:05]} f4+ {[%emt 0:17:07]} 37. Kh4 {[%emt 0:00:05]} cxb5 {[%emt 0:09:47]} 38. axb5 {[%emt 0:00:01]} Rxg2 {[%emt 0:00:02]} 39. b6 {[%emt 0:00:31]} Rxh2+ {[%emt 0:01:01]} 40. Kg4 {[%emt 0:02:44]} Rg2+ {[%emt 0:03:49]} 41. Kh3 {[%emt 0:00:24]} Rg3+ {[%emt 0:00:51]} 42. Kh4 {[%emt 0:02:59]} Rxf3 {[%emt 0:00:53]} 43. b7 {[%emt 0:00:11]} Rb3 {[%emt 0:00:31]} 44. Ra8+ {[%emt 0:00:19]} Kg7 {[%emt 0:00:02]} 45. b8=Q {[%emt 0:00:11]} Rxb8 {[%emt 0:00:21]} 46. Rxb8 {[%emt 0:00:02]} Bf5 {[%emt 0:00:20]} 47. Kg5 {[%emt 0:00:28]} Bc2 {[%emt 0:00:29]} 48. Rb7+ {[%emt 0:00:10]} Kf8 {[%emt 0:00:06]} 49. Nf2 {[%emt 0:00:54]} h6+ {[%emt 0:00:55]} 50. Kf6 {[%emt 0:00:13]} 1-0

[Event "ESP-ch U2000 2024"]
[Site "Albacete"]
[Date "2024.08.31"]
[Round "7.5"]
[White "Zubizarreta Landera, Denis"]
[Black "Sierra Pena, Mario"]
[Result "0-1"]
[ECO "E34"]
[WhiteElo "1919"]
[BlackElo "1971"]
[Annotator "NA RC"]
[PlyCount "134"]
[EventDate "2024.08.27"]
[EventType "swiss"]
[EventCountry "ESP"]
[SourceTitle "playchess.com"]
[Source "ChessBase"]
[SourceQuality "1"]
[TimeControl "5400+30"]

1. d4 {[%emt 0:02:39]} Nf6 {[%emt 0:00:07]} 2. c4 {[%emt 0:00:21]} e6 {[%emt 0:00:10]} 3. Nc3 {[%emt 0:00:06]} Bb4 {[%emt 0:01:01]} 4. Qc2 {[%emt 0:00:07]} d5 {[%emt 0:00:48]} 5. cxd5 {[%emt 0:16:08]} Bxc3+ {[%emt 0:06:11]} 6. Qxc3 {[%emt 0:03:29]} Nxd5 {[%emt 0:01:52]} 7. Qc2 {[%emt 0:02:28]} Nf6 {[%emt 0:08:38]} 8. Nf3 {[%emt 0:00:28]} Nc6 {[%emt 0:01:57]} 9. e3 {[%emt 0:02:13]} O-O {[%emt 0:02:57]} 10. Bd2 {[%emt 0:01:58]} Qd6 {[%emt 0:07:07]} 11. Bc3 {[%emt 0:06:07]} Nb4 {[%emt 0:17:10]} 12. Qb3 {[%emt 0:05:58]} Nbd5 {[%emt 0:03:38]} 13. Bd3 {[%emt 0:15:02]} Qb6 {[%emt 0:01:38]} 14. Qxb6 {[%emt 0:12:34]} axb6 {[%emt 0:00:44]} 15. Bd2 {[%emt 0:00:04]} Bd7 {[%emt 0:02:56]} 16. Ne5 {[%emt 0:02:47]} Bc6 {[%emt 0:04:59]} 17. Ke2 {[%emt 0:00:57]} Ne7 {[%emt 0:00:51]} 18. f3 {[%emt 0:00:10]} Bd5 {[%emt 0:01:42]} 19. Rhc1 {[%emt 0:01:14]} Rfc8 {[%emt 0:03:12]} 20. a3 {[%emt 0:02:48]} Nc6 {[%emt 0:01:27]} 21. Nxc6 {[%emt 0:03:51]} Bxc6 {[%emt 0:00:36]} 22. g4 {[%emt 0:02:12]} Be8 {[%emt 0:01:36]} 23. g5 {[%emt 0:03:08]} Nd7 {[%emt 0:00:12]} 24. Rc3 {[%emt 0:00:09]} e5 {[%emt 0:02:03]} 25. d5 {[%emt 0:00:45]} Nc5 {[%emt 0:02:39]} 26. Bf5 {[%emt 0:00:45]} Rd8 {[%emt 0:00:23]} 27. b4 {[%emt 0:03:30]} Na6 {[%emt 0:00:34]} 28. Be4 {[%emt 0:00:23]} Bb5+ {[%emt 0:02:23]} 29. Ke1 {[%emt 0:00:16]} Rd6 {[%emt 0:07:08]} 30. Rcc1 {[%emt 0:02:14]} Rad8 {[%emt 0:00:56]} 31. Bc3 {[%emt 0:00:41]} Re8 {[%emt 0:03:58]} 32. h4 {[%emt 0:00:10]} Ba4 {[%emt 0:01:15]} 33. Ra2 {[%emt 0:01:46]} Nb8 {[%emt 0:05:41]} 34. Rb2 {[%emt 0:00:56]} Bb5 {[%emt 0:00:52]} 35. Ra1 {[%emt 0:01:10]} Nd7 {[%emt 0:00:41]} 36. a4 {[%emt 0:02:01]} Ra8 {[%emt 0:00:10]} 37. Rba2 {[%emt 0:00:28]} Bc4 {[%emt 0:00:12]} 38. Rd2 {[%emt 0:00:01]} Bb3 {[%emt 0:00:49]} 39. b5 {[%emt 0:01:43]} f6 {[%emt 0:01:00]} 40. Bf5 {[%emt 0:00:23]} Nc5 {[%emt 0:01:07]} 41. Bb4 {[%emt 0:00:29]} Rxd5 {[%emt 0:00:49]} 42. Rxd5 {[%emt 0:06:13]} Bxd5 {[%emt 0:00:02]} 43. Bxc5 {[%emt 0:00:01]} bxc5 {[%emt 0:00:08]} 44. a5 {[%emt 0:00:02]} Bc4 {[%emt 0:01:11]} 45. Rc1 {[%emt 0:00:11]} Bxb5 {[%emt 0:00:47]} 46. Rxc5 {[%emt 0:00:01]} c6 {[%emt 0:00:19]} 47. Be6+ {[%emt 0:00:37]} Kf8 {[%emt 0:00:09]} 48. gxf6 {[%emt 0:01:19]} gxf6 {[%emt 0:00:01]} 49. f4 {[%emt 0:00:01]} exf4 {[%emt 0:00:35]} 50. exf4 {[%emt 0:00:10]} Rxa5 {[%emt 0:01:22]} 51. Rh5 {[%emt 0:00:01]} Kg7 {[%emt 0:01:07]} 52. Bf5 {[%emt 0:01:30]} h6 {[%emt 0:00:03]} 53. Bc8 {[%emt 0:00:00]} b6 {[%emt 0:00:21]} 54. Rf5 {[%emt 0:00:39]} Ra1+ {[%emt 0:01:16]} 55. Kd2 {[%emt 0:00:11]} Ra2+ {[%emt 0:00:20]} 56. Ke3 {[%emt 0:00:25]} Ra3+ {[%emt 0:00:15]} 57. Kd2 {[%emt 0:00:00]} Bd3 {[%emt 0:00:28]} 58. h5 {[%emt 0:00:49]} Bxf5 {[%emt 0:00:16]} 59. Bxf5 {[%emt 0:00:02]} Kf7 {[%emt 0:00:14]} 60. Kc2 {[%emt 0:00:07]} Ke7 {[%emt 0:00:11]} 61. Kb2 {[%emt 0:00:07]} Rg3 {[%emt 0:00:19]} 62. Be4 {[%emt 0:00:05]} Kd6 {[%emt 0:00:21]} 63. Bh7 {[%emt 0:00:12]} Rf3 {[%emt 0:00:14]} 64. f5 {[%emt 0:00:05]} Ke5 {[%emt 0:00:17]} 65. Bg6 {[%emt 0:00:09]} Rxf5 {[%emt 0:00:11]} 66. Bxf5 {[%emt 0:00:09]} Kxf5 {[%emt 0:00:01]} 67. Kc3 Ke5 0-1

[Event "ESP-ch U2000 2024"]
[Site "Albacete"]
[Date "2024.08.31"]
[Round "7.6"]
[White "Reig Albero, Ferran"]
[Black "Duller Llopis, Jouke"]
[Result "1/2-1/2"]
[ECO "D55"]
[WhiteElo "1969"]
[BlackElo "1928"]
[Annotator "NA RC"]
[PlyCount "82"]
[EventDate "2024.08.27"]
[EventType "swiss"]
[EventCountry "ESP"]
[SourceTitle "playchess.com"]
[Source "ChessBase"]
[SourceQuality "1"]
[TimeControl "5400+30"]

1. d4 {[%emt 0:00:30]} d5 {[%emt 0:04:22]} 2. c4 {[%emt 0:00:12]} e6 {[%emt 0:00:55]} 3. Nc3 {[%emt 0:00:13]} Nf6 {[%emt 0:00:41]} 4. Bg5 {[%emt 0:00:42]} Be7 {[%emt 0:02:12]} 5. Nf3 {[%emt 0:00:44]} O-O {[%emt 0:08:03]} 6. e3 {[%emt 0:00:14]} b6 {[%emt 0:00:35]} 7. cxd5 {[%emt 0:01:31]} exd5 {[%emt 0:00:11]} 8. Rc1 {[%emt 0:04:04]} Bb7 {[%emt 0:00:42]} 9. Bd3 {[%emt 0:03:03]} Nbd7 {[%emt 0:06:40]} 10. O-O {[%emt 0:01:23]} c5 {[%emt 0:13:30]} 11. Qe2 {[%emt 0:13:05]} Ne4 {[%emt 0:07:00]} 12. Bxe7 {[%emt 0:03:21]} Qxe7 {[%emt 0:00:30]} 13. Rfd1 {[%emt 0:03:11]} Rac8 {[%emt 0:08:19]} 14. dxc5 {[%emt 0:04:22]} Nxc3 {[%emt 0:01:19]} 15. Rxc3 {[%emt 0:00:44]} bxc5 {[%emt 0:00:27]} 16. Rdc1 {[%emt 0:10:55]} Rc6 {[%emt 0:13:42]} 17. Bb5 {[%emt 0:09:28]} Re6 {[%emt 0:16:52]} 18. Bxd7 {[%emt 0:01:32]} Qxd7 {[%emt 0:00:04]} 19. Rxc5 {[%emt 0:00:25]} d4 {[%emt 0:00:27]} 20. Rc7 {[%emt 0:17:53]} Qd5 {[%emt 0:01:35]} 21. Rd1 {[%emt 0:01:05]} Ba6 {[%emt 0:02:35]} 22. Rxd4 {[%emt 0:05:23]} Qxd4 {[%emt 0:00:29]} 23. Nxd4 {[%emt 0:00:15]} Bxe2 {[%emt 0:00:05]} 24. Nxe2 {[%emt 0:04:51]} Ra6 {[%emt 0:01:31]} 25. Nc3 {[%emt 0:01:00]} Rd8 {[%emt 0:01:01]} 26. Kf1 {[%emt 0:00:33]} g6 {[%emt 0:01:32]} 27. Ke2 {[%emt 0:00:06]} Rad6 {[%emt 0:01:01]} 28. Rxa7 {[%emt 0:00:50]} Rd2+ {[%emt 0:00:08]} 29. Kf3 {[%emt 0:00:18]} Rxb2 {[%emt 0:00:07]} 30. Ne4 {[%emt 0:01:09]} Rbb8 {[%emt 0:04:33]} 31. Rc7 {[%emt 0:05:30]} Ra8 {[%emt 0:00:30]} 32. Rc2 {[%emt 0:00:09]} Ra3 {[%emt 0:00:52]} 33. g4 {[%emt 0:00:42]} Rda8 {[%emt 0:01:08]} 34. g5 {[%emt 0:00:33]} Rxa2 {[%emt 0:00:16]} 35. Rxa2 {[%emt 0:01:13]} Rxa2 {[%emt 0:00:06]} 36. Nf6+ {[%emt 0:00:15]} Kg7 {[%emt 0:00:09]} 37. h4 {[%emt 0:00:03]} h5 {[%emt 0:00:50]} 38. Kg3 {[%emt 0:01:37]} Kf8 {[%emt 0:02:28]} 39. Nd7+ {[%emt 0:02:58]} Ke7 {[%emt 0:00:21]} 40. Ne5 {[%emt 0:00:02]} Re2 {[%emt 0:01:46]} 41. Nc6+ {[%emt 0:00:50]} Kd7 {[%emt 0:00:39]} 1/2-1/2